fUST/lending_fUST_20251219
["ID","MTS","AMOUNT","RATE_DAILY","PERIOD"]
[399116863,1766113401504,-349.89905529,0.00013273,2]
[399116890,1766113599115,-150.10094471,0.00013273,2]
[399116891,1766113599136,-11.24763878,0.00013417,2]
[399116934,1766113645110,-43.02109137,0.00013417,2]
[399116935,1766113645135,-150.0,0.00013488,2]
[399116936,1766113645159,-72.55072663,0.00013698,2]
[399116941,1766113680032,199.08,7.492e-05,14]
[399116944,1766113747089,-300.0,0.00013698,2]
[399116945,1766113747111,-269.340543,0.00013699,2]
[399116946,1766113747132,-500.0,0.00013699,2]
[399116947,1766113747152,-409.71438174,0.00013699,2]
[399116948,1766113747176,-500.0,0.00013699,2]
[399116949,1766113747196,-643.79350656,0.00013699,2]
[399116950,1766113747216,-522.07891426,0.00013699,2]
[399116951,1766113747235,-300.48159021,0.00014247,2]
[399116952,1766113747254,-1000.0,0.00014247,2]
[399116953,1766113747273,-347.0,0.00015011,2]
[399116954,1766113747292,-250.0,0.000152,7]
[399116955,1766113747313,-177.0,0.00015488,2]
[399116956,1766113747334,-204.0,0.00017488,2]
[399116957,1766113747353,-4205.64594143,0.0001776,2]
[399116958,1766113747373,-231.0,0.00019488,2]
[399116959,1766113747393,-178.74974551,0.00020106,2]
[399116960,1766113747414,-269.340543,0.00020187,2]
[399116961,1766113747434,-258.0,0.00021488,2]
[399116962,1766113747453,-682.01352394,0.00023158,2]
[399116963,1766113747473,-284.87898286,0.00023488,2]
[399116964,1766113747492,-157.31380897,0.00023641,2]
[399116965,1766113747511,-1200.0,0.0002457,2]
[399116966,1766113747530,-329.295334,0.00024571,2]
[399116967,1766113747548,-2195.2708642,0.00024727,2]
[399116968,1766113747568,-248.69,0.00025105,14]
[399116969,1766113747587,-215.85,0.00025105,14]
[399116970,1766113747607,-451.66079124,0.00025623,2]
[399116971,1766113747628,-500.0,0.00025623,2]
[399116972,1766113747646,-500.0,0.00025623,2]
[399116973,1766113747666,-500.0,0.00025623,2]
[399116974,1766113747687,-500.0,0.00025623,2]
[399116975,1766113747708,-500.0,0.00025623,2]
[399116976,1766113747727,-500.0,0.00025623,2]
[399116977,1766113747748,-500.0,0.00025623,2]
[399116978,1766113747766,-500.0,0.00025623,2]
[399116979,1766113747785,-500.0,0.00025623,2]
[399116980,1766113747804,-500.0,0.00025623,2]
[399116981,1766113747821,-500.0,0.00025623,2]
[399116982,1766113747840,-500.0,0.00025623,2]
[399116983,1766113747858,-633.44073603,0.00025623,2]
[399116984,1766113747877,-500.0,0.00025623,2]
[399116985,1766113747897,-500.0,0.00025623,2]
[399116986,1766113747918,-500.0,0.00025623,2]
[399116987,1766113747938,-500.0,0.00025623,2]
[399116988,1766113747956,-400.77014948,0.00025623,2]
[399116989,1766113747980,-500.0,0.00025623,2]
[399116990,1766113748000,-601.44887298,0.00025623,2]
[399116991,1766113748021,-500.0,0.00025623,2]
[399116992,1766113748040,-500.0,0.00025623,2]
[399116993,1766113748061,-500.0,0.00025623,2]
[399116994,1766113748080,-500.0,0.00025623,2]
[399116995,1766113748100,-500.0,0.00025623,2]
[399116996,1766113748120,-500.0,0.00025623,2]
[399116997,1766113748143,-500.0,0.00025623,2]
[399116998,1766113748163,-500.0,0.00025623,2]
[399116999,1766113748183,-500.0,0.00025623,2]
[399117000,1766113748204,-500.0,0.00025623,2]
[399117001,1766113748224,-275.8843517,0.00025623,2]
[399117002,1766113748244,-500.0,0.00025623,2]
[399117003,1766113748267,-500.0,0.00025623,2]
[399117004,1766113748290,-500.0,0.00025623,2]
[399117005,1766113748313,-500.0,0.00025623,2]
[399117006,1766113748334,-500.0,0.00025623,2]
[399117007,1766113748355,-500.0,0.00025623,2]
[399117008,1766113748375,-500.0,0.00025623,2]
[399117009,1766113748395,-500.0,0.00025623,2]
[399117010,1766113748416,-500.0,0.00025623,2]
[399117011,1766113748436,-500.0,0.00025623,2]
[399117012,1766113748458,-500.0,0.00025623,2]
[399117013,1766113748479,-500.0,0.00025623,2]
[399117014,1766113748503,-500.0,0.00025623,2]
[399117015,1766113748531,-500.0,0.00025623,2]
[399117016,1766113748563,-500.0,0.00025623,2]
[399117017,1766113748583,-500.0,0.00025623,2]
[399117018,1766113748603,-500.0,0.00025623,2]
[399117019,1766113748622,-500.0,0.00025623,2]
[399117020,1766113748643,-500.0,0.00025623,2]
[399117021,1766113748663,-500.0,0.00025623,2]
[399117022,1766113748684,-264.9044902,0.00025623,2]
[399117023,1766113752120,278.47,0.00010239,2]
[399117024,1766113752536,556.93,0.00010726,2]
[399117025,1766113752944,267.00563584,0.00011214,2]
[399117026,1766113752967,568.39436416,0.00011214,2]
[399117027,1766113753345,1113.87,0.00011701,2]
[399117028,1766113753748,1392.34,0.00012189,2]
[399117029,1766113754153,1670.8,0.00012676,2]
[399117030,1766113754618,1949.27,0.00013164,2]
[399117031,1766113761085,-2227.74,0.00013651,2]
[399117032,1766113761108,-420.73527922,0.00014139,2]
[399117033,1766113765104,-5000.0,0.00013514,2]
[399117034,1766113765125,-2085.46472078,0.00014139,2]
[399117035,1766113765145,-2784.67,0.00014627,2]
[399117036,1766113765167,-235.0955098,0.00025623,2]
[399117037,1766113765189,-500.0,0.00025623,2]
[399117038,1766113765210,-500.0,0.00025623,2]
[399117039,1766113765233,-500.0,0.00025623,2]
[399117040,1766113765252,-500.0,0.00025623,2]
[399117041,1766113765273,-500.0,0.00025623,2]
[399117042,1766113765293,-500.0,0.00025623,2]
[399117043,1766113765313,-622.81247731,0.00025623,2]
[399117044,1766113765333,-500.0,0.00025623,2]
[399117045,1766113765352,-206.75203509,0.00025623,2]
[399117046,1766113765371,-500.0,0.00025623,2]
[399117047,1766113765391,-500.0,0.00025623,2]
[399117048,1766113765410,-500.0,0.00025623,2]
[399117049,1766113765430,-500.0,0.00025623,2]
[399117050,1766113765450,-500.0,0.00025623,2]
[399117051,1766113765469,-500.0,0.00025623,2]
[399117052,1766113765488,-500.0,0.00025623,2]
[399117053,1766113765506,-500.0,0.00025623,2]
[399117054,1766113765525,-500.0,0.00025623,2]
[399117055,1766113765545,-395.47367994,0.00025623,2]
[399117149,1766113832502,-150.0,0.00021388,2]
[399117151,1766113832512,-240.73,0.00022406,2]
[399117153,1766113832522,-361.09,0.00023425,2]
[399117155,1766113832531,-117.07528999,0.00024443,2]
[399117252,1766113838718,-364.38471001,0.00024443,2]
[399117254,1766113838728,-601.82,0.00025462,2]
[399117256,1766113838737,-500.0,0.00025488,30]
[399117258,1766113838749,-979.0,0.00025622,2]
[399117260,1766113838759,-500.0,0.00025623,2]
[399117262,1766113838770,-601.44887298,0.00025623,2]
[399117264,1766113838789,-500.0,0.00025623,2]
[399117266,1766113838803,-500.0,0.00025623,2]
[399117269,1766113838815,-189.18489002,0.00025623,2]
[399117271,1766113838827,-310.81510998,0.00025623,2]
[399117273,1766113838840,-500.0,0.00025623,2]
[399117275,1766113838849,-500.0,0.00025623,2]
[399117278,1766113838879,-500.0,0.00025623,2]
[399117280,1766113838892,-492.33795495,0.00025724,30]
[399117282,1766113838913,-8872.57629898,0.00025726,2]
[399117284,1766113838926,-12575.7686691,0.00026026,2]
[399117286,1766113838937,-3599.99270501,0.00026463,2]
[399117289,1766113838948,-722.18,0.0002648,2]
[399117291,1766113838959,-269.340543,0.00026676,2]
[399117293,1766113838969,-842.55,0.00027499,2]
[399117295,1766113838986,-329.295334,0.00027996,60]
[399117296,1766113839001,-962.91,0.00028517,2]
[399117299,1766113839017,-161.4443793,0.00029132,30]
[399117301,1766113839030,-321.74954191,0.0002934,2]
[399117302,1766113839040,-1083.27,0.00029535,2]
[399117304,1766113839050,-5000.0,0.00029989,2]
[399117306,1766113839063,-1203.64,0.00030554,2]
[399117309,1766113839074,-329.295334,0.0003142,60]
[399117311,1766113839084,-652.1496295,0.00032,120]
[399117313,1766113839095,-5000.0,0.00032156,2]
[399117315,1766113839107,-475.0,0.00032489,120]
[399117317,1766113839117,-475.0,0.00032489,120]
[399117319,1766113839127,-269.340543,0.00033165,2]
[399117321,1766113839137,-162.73903018,0.000332,117]
[399117323,1766113839147,-167.881,0.00033857,37]
[399117325,1766113839156,-571.99918562,0.00033957,2]
[399117327,1766113839166,-5000.0,0.00034322,2]
[399117328,1766113839176,-329.295334,0.00034845,60]
[399117330,1766113839187,-5000.0,0.00036489,2]
[399117332,1766113839197,-329.295334,0.0003827,60]
[399117335,1766113839208,-32010.8946976,0.00038646,3]
[399117337,1766113839218,-5000.0,0.00038656,3]
[399117338,1766113839228,-515.071,0.00038711,120]
[399117340,1766113839238,-1000.0,0.00038711,120]
[399117342,1766113839249,-64021.7893952,0.0003898,3]
[399117344,1766113839259,-100000.0,0.0003899,2]
[399117346,1766113839269,-563.36,0.00039616,3]
[399117348,1766113839278,-384130.736371,0.00039616,3]
[399117350,1766113839288,-5354.365332,0.00039626,120]
[399117353,1766113839298,-5354.365332,0.00039626,120]
[399117354,1766113839308,-5354.365332,0.00039626,120]
[399117356,1766113839317,-5354.365332,0.00039626,120]
[399117358,1766113839327,-3807.727437,0.00039626,120]
[399117360,1766113839337,-3807.727437,0.00039626,120]
[399117363,1766113839347,-3807.727437,0.00039626,120]
[399117365,1766113839356,-3807.727437,0.00039626,120]
[399117366,1766113839366,-10000.0,0.00039626,120]
[399117368,1766113839375,-3703.401386,0.00039626,120]
[399117370,1766113839385,-10000.0,0.00039626,120]
[399117372,1766113839395,-10000.0,0.00039626,120]
[399117375,1766113839404,-3703.401386,0.00039626,120]
[399117376,1766113839413,-10000.0,0.00039626,120]
[399117378,1766113839423,-3703.401386,0.00039626,120]
[399117380,1766113839432,-10000.0,0.00039626,120]
[399117382,1766113839441,-3703.401386,0.00039626,120]
[399117384,1766113839450,-744162.69290201,0.00039626,2]
[399117387,1766113839462,-307.8364998,0.00039626,2]
[399117389,1766113839474,-145529.47059819,0.00039626,2]
[399117391,1766113839484,-269.340543,0.00039654,2]
[399117393,1766113839493,-168.35,0.000397,30]
[399117395,1766113839502,-12717.44,0.000397,2]
[399117397,1766113839511,-7553.85,0.000397,14]
[399117399,1766113839521,-719.27508975,0.00039726,15]
[399117401,1766113839530,-1273.68047654,0.0004,120]
[399117403,1766113839539,-5000.0,0.00040822,3]
[399117405,1766113839548,-500.0,0.00041096,120]
[399117407,1766113839557,-23737.0041051,0.0004129,120]
[399117409,1766113839565,-250.00375404,0.0004129,120]
[399117411,1766113839574,-5000.0,0.00042989,4]
[399117413,1766113839583,-1200.0,0.00043,120]
[399117414,1766113839592,-1000.0,0.00045,120]
[399117416,1766113839601,-240.0,0.00046,120]
[399117419,1766113839611,-269.340543,0.00046143,2]
[399117421,1766113839620,-292.90868032,0.00047,60]
[399117422,1766113839629,-1371.981,0.00047804,2]
[399117424,1766113839638,-634.656,0.00047804,2]
[399117426,1766113839647,-2163.281,0.00047804,2]
[399117428,1766113839656,-3025.105403,0.00049315,120]
[399117430,1766113839665,-154.77557781,0.00049315,120]
[399117432,1766113839675,-500.0,0.00049315,120]
[399117435,1766113839688,-1000.0,0.0005,120]
[399117437,1766113839698,-1361.0,0.00050804,120]
[399117439,1766113839707,-632.0,0.00050804,120]
[399117440,1766113839716,-5526.410626,0.00051,85]
[399117443,1766113839726,-269.340543,0.00052632,2]
[399117445,1766113839735,-167.882,0.00052893,97]
[399117447,1766113839746,-155.0,0.00053,120]
[399117448,1766113839755,-3000.0,0.00053888,120]
[399117450,1766113839764,-1000.0,0.00054576,30]
[399117452,1766113839774,-155.0,0.000548,120]
[399117455,1766113839784,-164.91440973,0.00055,120]
[399117456,1766113839793,-500.0,0.00056156,120]
[399117459,1766113839804,-155.0,0.000567,120]
[399117460,1766113839814,-24364.9304763,0.00056818,2]
[399117462,1766113839823,-11510.57326363,0.0005689,2]
[399117464,1766113839832,-151.0,0.0005699,120]
[399117466,1766113839841,-164.91440973,0.00057,120]
[399117468,1766113839850,-3144.8579143,0.00057047,2]
[399117470,1766113839860,-5354.365332,0.00057047,120]
[399117472,1766113839869,-5354.365332,0.00057047,120]
[399117474,1766113839878,-5354.365332,0.00057047,120]
[399117475,1766113839888,-5354.365332,0.00057047,120]
[399117476,1766113839897,-3807.727437,0.00057047,120]
[399117477,1766113839906,-3807.727437,0.00057047,120]
[399117478,1766113839914,-3807.727437,0.00057047,120]
[399117479,1766113839924,-3807.727437,0.00057047,120]
[399117480,1766113839939,-10000.0,0.00057047,120]
[399117481,1766113839950,-10000.0,0.00057047,120]
[399117482,1766113839963,-3703.401386,0.00057047,120]
[399117483,1766113839975,-3703.401386,0.00057047,120]
[399117484,1766113839990,-10000.0,0.00057047,120]
[399117485,1766113840002,-10000.0,0.00057047,120]
[399117486,1766113840013,-3703.401386,0.00057047,120]
[399117487,1766113840028,-10046.442064,0.00057047,120]
[399117488,1766113840038,-3703.401386,0.00057047,120]
[399117489,1766113840048,-500.0,0.00057252,120]
[399117490,1766113840059,-50622.49333732,0.0005742,30]
[399117491,1766113840072,-586.89717923,0.0005742,30]
[399117492,1766113840085,-2460.19173758,0.0005742,30]
[399117546,1766113840766,-807.33546146,0.00029311,2]
[399117548,1766113840776,-78.756261,0.00030783,2]
[399117575,1766113841040,-3e-08,0.00030783,2]
[399117887,1766113843916,-728.57920043,0.00030783,2]
[399117889,1766113843931,-807.33546146,0.00032254,2]
[399117891,1766113843942,-807.33546146,0.00033726,2]
[399117893,1766113843953,-807.33546146,0.00035197,2]
[399117895,1766113843965,-807.33546146,0.00036668,2]
[399117898,1766113843978,-40472.96315556,0.0005742,30]
[399117900,1766113843995,-405847.07428281,0.0005742,30]
[399118257,1766113863832,198.5,0.00013699,2]
[399118267,1766113866990,1000.0,0.00013821,2]
[399118268,1766113867039,500.0,0.00013273,2]
[399118269,1766113867742,500.0,0.00013273,2]
[399118270,1766113867784,1000.0,0.00013821,2]
[399118271,1766113871046,500.0,0.00013273,2]
[399118272,1766113871088,1000.0,0.00013821,2]
[399118273,1766113871139,500.0,0.00013699,2]
[399118274,1766113871625,500.0,0.00013273,2]
[399118275,1766113871653,534.53070592,0.00013821,2]
[399118285,1766113874863,300.0,0.00013673,2]
[399118286,1766113877532,500.0,0.00013699,2]
[399118287,1766113878050,257.04550563,0.00013699,2]
[399118288,1766113930524,500.0,0.00013699,2]
[399118290,1766113983777,1000.0,0.00013821,2]
[399118291,1766113983836,500.0,0.00013273,2]
[399118292,1766113986506,334.15,0.00012417,2]
[399118293,1766113986910,375.78378845,0.00013008,2]
[399118294,1766113986934,292.50621155,0.00013008,2]
[399118295,1766113987331,1002.44,0.000136,2]
[399118296,1766113991638,500.0,0.00013699,2]
[399118297,1766113991751,500.0,0.00013273,2]
[399118298,1766113991800,614.72501626,0.00013821,2]
[399118299,1766113994877,300.0,0.00013673,2]
[399118300,1766113997800,500.0,0.00013699,2]
[399118301,1766114024436,298.23,0.00013228,120]
[399118302,1766114035272,5000.0,0.00014139,2]
[399118303,1766114043303,175.94373406,0.00013699,2]
[399118304,1766114058490,1114.39503813,0.00014139,2]
[399118305,1766114058511,3885.60496187,0.00014139,2]
[399118306,1766114067446,308.63,0.00010232,2]
[399118307,1766114067852,617.26,0.0001072,2]
[399118308,1766114068285,925.89,0.00011207,2]
[399118309,1766114068679,1234.52,0.00011694,2]
[399118310,1766114069118,1543.15,0.00012181,2]
[399118311,1766114069522,1484.95503813,0.00012669,2]
[399118312,1766114069546,366.82496187,0.00012669,2]
[399118313,1766114070420,2160.41,0.00013156,2]
[399118314,1766114070841,2469.04,0.00013643,2]
[399118315,1766114071233,2777.67,0.0001413,2]
[399118316,1766114074462,2226.06503813,0.00014139,2]
[399118317,1766114074483,437.78232121,0.00014139,2]
[399118318,1766114082891,5000.0,0.00014139,2]
[399118319,1766114084718,-600.0,0.00014221,2]
[399118320,1766114084746,-150.0,0.00014234,2]
[399118321,1766114084773,-300.0,0.00014246,2]
[399118322,1766114084800,-1000.0,0.00014247,2]
[399118323,1766114084827,-1000.0,0.00014247,2]
[399118324,1766114084853,-1000.0,0.00014247,2]
[399118325,1766114084879,-901.01,0.00014267,2]
[399118326,1766114087541,-97.99,0.00014267,2]
[399118327,1766114087568,-1500.0,0.00014368,2]
[399118328,1766114087596,-1500.0,0.00014368,2]
[399118329,1766114087625,-1500.0,0.00014368,2]
[399118330,1766114090664,-3086.3,0.00014618,2]
[399118331,1766114090691,-900.0,0.00014768,2]
[399118332,1766114090718,-527.41,0.00014795,2]
[399118333,1766114093710,-972.59,0.00014795,2]
[399118334,1766114093738,-1500.0,0.00014795,2]
[399118335,1766114093765,-1500.0,0.00014795,2]
[399118336,1766114093791,-54.83,0.00014916,2]
[399118337,1766114096850,-1945.17,0.00014916,2]
[399118338,1766114096877,-1146.05228719,0.00014916,2]
[399118339,1766114096904,-1817.56542562,0.00014916,2]
[399118340,1766114101098,-182.43457438,0.00014916,2]
[399118341,1766114105914,5000.0,0.00014916,2]
[399118342,1766114107044,500.0,0.00013699,2]
[399118343,1766114107094,1000.0,0.00014247,2]
[399118344,1766114107156,1500.0,0.00014795,2]
[399118345,1766114109220,500.0,0.00013699,2]
[399118346,1766114109269,1000.0,0.00014247,2]
[399118347,1766114109321,135.14085124,0.00014795,2]
[399118348,1766114109344,671.61532394,0.00014795,2]
[399118349,1766114109578,500.0,0.00013699,2]
[399118350,1766114110449,501.31187988,0.00013273,2]
[399118351,1766114110687,500.0,0.00013273,2]
[399118352,1766114110712,500.0,0.00013699,2]
[399118353,1766114110745,1000.0,0.00013821,2]
[399118354,1766114110770,1000.0,0.00014247,2]
[399118355,1766114110798,1500.0,0.00014368,2]
[399118356,1766114110821,1188.74662648,0.00014795,2]
[399118357,1766114110850,2002.00577196,0.00014916,2]
[399118358,1766114113595,500.0,0.00013273,2]
[399118359,1766114113621,136.33039774,0.00013699,2]
[399118360,1766114113640,363.66960226,0.00013699,2]
[399118361,1766114113664,1000.0,0.00013821,2]
[399118362,1766114113688,1000.0,0.00014247,2]
[399118363,1766114113719,1500.0,0.00014368,2]
[399118364,1766114113748,1000.0,0.00014795,2]
[399118365,1766114113801,862.33245647,0.00014916,2]
[399118366,1766114113832,500.0,0.00013699,2]
[399118367,1766114113857,1000.0,0.00013821,2]
[399118368,1766114113887,1000.0,0.00014247,2]
[399118369,1766114113911,500.0,0.00013273,2]
[399118370,1766114113954,1274.00794127,0.00014368,2]
[399118371,1766114115338,-500.0,0.00013699,2]
[399118372,1766114115367,-1000.0,0.00014247,2]
[399118373,1766114115395,-225.99205873,0.00014368,2]
[399118374,1766114115423,-1002.83409231,0.00014795,2]
[399118375,1766114115450,-1500.0,0.00014795,2]
[399118376,1766114121371,-500.0,0.00013273,2]
[399118377,1766114121399,-500.0,0.00013273,2]
[399118378,1766114121431,-300.0,0.00013673,2]
[399118379,1766114121465,-501.18226219,0.00013699,2]
[399118380,1766114121493,-500.0,0.00013699,2]
[399118381,1766114121520,-500.0,0.00013699,2]
[399118382,1766114121546,-500.0,0.00013699,2]
[399118383,1766114121573,-1000.0,0.00013821,2]
[399118384,1766114121600,-397.64547562,0.00013821,2]
[399118385,1766114124571,-602.35452438,0.00013821,2]
[399118386,1766114124597,-600.0,0.00014221,2]
[399118387,1766114124622,-1000.0,0.00014247,2]
[399118388,1766114124647,-1000.0,0.00014247,2]
[399118389,1766114124672,-1000.0,0.00014247,2]
[399118390,1766114124697,-90.01701518,0.00014368,2]
[399118391,1766114127615,-1415.26692088,0.00014368,2]
[399118392,1766114127643,-1500.0,0.00014368,2]
[399118393,1766114127670,-527.44235505,0.00014768,2]
[399118394,1766114127696,-1500.0,0.00014795,2]
[399118395,1766114130608,-500.0,0.00013273,2]
[399118396,1766114130634,-500.0,0.00013699,2]
[399118397,1766114130662,-469.93454535,0.00013821,2]
[399118398,1766114130692,-2060.1409093,0.00014225,2]
[399118399,1766114134804,-500.0,0.00013699,2]
[399118400,1766114134835,-2939.8590907,0.00014225,2]
[399118401,1766114134865,-1000.0,0.00014247,2]
[399118402,1766114134896,-120.2918186,0.00014247,2]
[399118403,1766114135049,-879.7081814,0.00014247,2]
[399118404,1766114135080,-1500.0,0.00014795,2]
[399118405,1766114135110,-1500.0,0.00014795,2]
[399118406,1766114135141,-740.5936372,0.00014795,2]
[399118407,1766114139145,-759.4063628,0.00014795,2]
[399118408,1766114139174,-1469.95575667,0.00014795,2]
[399118409,1766114139206,-2034.53070592,0.00014916,2]
[399118410,1766114143079,-2000.0,0.00014916,2]
[399118411,1766114144047,150.0,9.136e-05,2]
[399118412,1766114144483,266.94,9.571e-05,2]
[399118413,1766114144634,385.56871377,0.00014767,2]
[399118414,1766114144937,400.41,0.00010006,2]
[399118415,1766114145309,533.88,0.00010441,2]
[399118416,1766114145712,667.34,0.00010876,2]
[399118417,1766114146121,800.81,0.00011311,2]
[399118418,1766114146518,934.28,0.00011746,2]
[399118419,1766114146927,1067.75,0.00012181,2]
[399118420,1766114147326,793.03128623,0.00012616,2]
[399118421,1766114147350,408.18871377,0.00012616,2]
[399118422,1766114147713,1334.69,0.00013051,2]
[399118423,1766114152455,5000.0,0.00014916,2]
[399118424,1766114167178,502.12038227,0.00013273,2]
[399118425,1766114179475,2755.01090396,0.00014916,2]
[399118426,1766114179498,2244.98909604,0.00014916,2]
[399118427,1766114203294,5000.0,0.00014916,2]
[399118428,1766114221544,150.0,0.00010483,2]
[399118429,1766114221951,150.0,0.00010983,2]
[399118430,1766114222371,150.0,0.00011482,2]
[399118431,1766114222798,159.32,0.00011981,2]
[399118432,1766114223221,199.15,0.0001248,2]
[399118433,1766114223640,238.98,0.00012979,2]
[399118434,1766114224066,278.81,0.00013479,2]
[399118435,1766114224492,318.64,0.00013978,2]
[399118436,1766114224897,358.47,0.00014477,2]
[399118437,1766114224953,500.0,0.00013273,2]
[399118438,1766114224983,251.65090396,0.00014916,2]
[399118439,1766114225004,1748.34909604,0.00014916,2]
[399118440,1766114225030,1000.0,0.00013821,2]
[399118441,1766114225061,1500.0,0.00014368,2]
[399118442,1766114225099,500.0,0.00013273,2]
[399118443,1766114225154,316.57593666,0.00013821,2]
[399118444,1766114225375,500.0,0.00013273,2]
[399118445,1766114225423,1000.0,0.00013821,2]
[399118446,1766114225474,850.25762059,0.00014368,2]
[399118447,1766114225528,209.03417449,0.00013273,2]
[399118448,1766114226125,2375.79317222,0.00014916,2]
[399118449,1766114226149,2624.20682778,0.00014916,2]
[399118450,1766114227086,500.0,0.00013273,2]
[399118451,1766114227143,1000.0,0.00013821,2]
[399118452,1766114227194,915.03838415,0.00014368,2]
[399118453,1766114227220,500.0,0.00013699,2]
[399118454,1766114227252,1000.0,0.00014247,2]
[399118455,1766114227312,807.39344801,0.00014795,2]
[399118456,1766114227760,500.0,0.00013273,2]
[399118457,1766114228202,500.0,0.00013699,2]
[399118458,1766114228256,190.40973251,0.00014247,2]
[399118459,1766114228786,1000.0,0.00014247,2]
[399118460,1766114228861,462.96160755,0.00013699,2]
[399118461,1766114231347,-219.08611254,0.00013273,2]
[399118462,1766114231376,-500.0,0.00013273,2]
[399118463,1766114231408,-37.03839245,0.00013699,2]
[399118464,1766114231437,-500.0,0.00013699,2]
[399118465,1766114231465,-311.25337352,0.00013699,2]
[399118466,1766114231518,-1000.0,0.00014247,2]
[399118467,1766114231549,-1500.0,0.00014795,2]
[399118468,1766114231577,-365.25424298,0.00014795,2]
[399118469,1766114233919,-171.25573004,0.00013273,2]
[399118470,1766114233947,-500.0,0.00013273,2]
[399118471,1766114233976,-527.41,0.00013273,2]
[399118472,1766114234004,-500.0,0.00013699,2]
[399118473,1766114234031,-500.0,0.00013699,2]
[399118474,1766114234057,-500.0,0.00013699,2]
[399118475,1766114234088,-1000.0,0.00013821,2]
[399118476,1766114234118,-1000.0,0.00014247,2]
[399118477,1766114237357,-1500.0,0.00014368,2]
[399118478,1766114237386,-1134.74575702,0.00014795,2]
[399118479,1766114237414,-1408.05792696,0.00014795,2]
[399118480,1766114237441,-894.13785871,0.00014916,2]
[399118481,1766114241423,-500.46061568,0.00013273,2]
[399118482,1766114241452,-500.0,0.00013273,2]
[399118483,1766114241480,-500.0,0.00013273,2]
[399118484,1766114241508,-500.0,0.00013699,2]
[399118485,1766114241536,-527.05307833,0.00013699,2]
[399118486,1766114241562,-500.0,0.00013699,2]
[399118487,1766114241588,-500.0,0.00013699,2]
[399118488,1766114241615,-500.0,0.00013821,2]
[399118489,1766114241644,-944.98261198,0.00013821,2]
[399118490,1766114245711,-150.0,0.00013547,2]
[399118491,1766114245742,-177.84910352,0.00013699,2]
[399118492,1766114245769,-500.0,0.00013699,2]
[399118493,1766114245795,-55.01738802,0.00013821,2]
[399118494,1766114245822,-1000.0,0.00014247,2]
[399118495,1766114245848,-1000.0,0.00014247,2]
[399118496,1766114245877,-524.83006955,0.00014247,2]
[399118497,1766114245902,-1500.0,0.00014368,2]
[399118498,1766114248890,-500.24781108,0.00013699,2]
[399118499,1766114248917,-1500.0,0.00014795,2]
[399118500,1766114248944,-1500.0,0.00014795,2]
[399118501,1766114248971,-126.12691462,0.00014916,2]
[399118502,1766114249001,-747.2605486,0.00014916,2]
[399118503,1766114249261,-1252.7394514,0.00014916,2]
[399118504,1766114249783,5000.0,0.00014916,2]
[399118505,1766114272505,2494.5310972,0.00014916,2]
[399118506,1766114272530,2505.4689028,0.00014916,2]
[399118507,1766114285394,500.0,0.00013699,2]
[399118508,1766114285445,1139.59895212,0.00014247,2]
[399118509,1766114294591,150.0,0.00010566,2]
[399118510,1766114295012,150.0,0.00011069,2]
[399118511,1766114295384,150.0,0.00011572,2]
[399118512,1766114295779,150.0,0.00012075,2]
[399118513,1766114296132,5000.0,0.00014916,2]